bitfinex/quotes_ETHUSD_20240702
["timestamp","ask_amount","ask_price","bid_price","bid_amount"]
[1719903090862,2.8967,3452.2,3451.7,2.3742]
[1719903091162,2.8967,3452.2,3451.8,0.609337]
[1719903091564,2.8967,3452.2,3451.9,0.10156268]
[1719903093864,2.8967,3452.2,3452.0,2.3117]
[1719903094543,2.8967,3452.2,3452.1,0.10156268]
[1719903096081,2.8967,3452.2,3451.8,3.701637]
[1719903096365,2.8967,3452.2,3452.1,0.10156268]
[1719903096775,2.8967,3452.2,3451.9,0.6598807]
[1719903097074,2.8967,3452.2,3452.0,0.10156268]
[1719903097275,2.89653,3452.4,3452.0,0.10156268]
[1719903099682,5.28573,3452.6,3452.0,0.10156268]
[1719903104214,6.10773,3452.6,3452.0,0.10156268]
[1719903104511,5.28573,3452.6,3452.0,0.10156268]
[1719903109489,5.28573,3452.6,3452.0,2.99843268]
[1719903112540,1.13769497,3452.5,3452.0,2.99843268]
[1719903112838,5.28573,3452.6,3452.0,2.99843268]
[1719903113392,1.13764874,3452.5,3452.0,2.99843268]
[1719903113599,5.28573,3452.6,3452.0,2.99843268]
[1719903113901,1.13764864,3452.5,3452.0,2.99843268]
[1719903114233,5.28573,3452.6,3452.0,2.99843268]
[1719903114442,1.13765287,3452.5,3452.0,2.99843268]
[1719903114739,5.28573,3452.6,3452.0,2.99843268]
[1719903114901,1.13756455,3452.5,3452.0,2.99843268]
[1719903115101,5.28573,3452.6,3452.0,2.99843268]
[1719903115442,1.13756298,3452.5,3452.0,2.99843268]
[1719903115635,5.28573,3452.6,3452.0,2.99843268]
[1719903116029,1.13763439,3452.5,3452.0,2.99843268]
[1719903116197,5.28573,3452.6,3452.0,2.99843268]
[1719903116401,1.13764597,3452.5,3452.0,2.99843268]
[1719903116627,5.28573,3452.6,3452.0,2.99843268]
[1719903116923,1.13763826,3452.5,3452.0,2.99843268]
[1719903117137,2.89643,3452.6,3452.0,2.99843268]
[1719903117431,1.1376494,3452.5,3452.0,2.99843268]
[1719903117631,2.89643,3452.6,3452.0,2.99843268]
[1719903117833,2.89634,3452.7,3452.0,3.89719295]
[1719903118152,1.13761141,3452.6,3452.0,3.89719295]
[1719903118456,2.89634,3452.7,3452.0,3.89719295]
[1719903118768,1.1376388,3452.6,3452.0,3.89719295]
[1719903118957,2.89634,3452.7,3452.0,3.89719295]
[1719903119135,1.1376445,3452.6,3452.0,3.89719295]
[1719903119336,2.89634,3452.7,3452.0,3.89719295]
[1719903119661,1.1376378,3452.6,3452.0,3.89719295]
[1719903119979,2.89634,3452.7,3452.0,3.89719295]
[1719903120126,1.13760393,3452.6,3452.2,2.8967]
[1719903120321,2.89611,3452.9,3452.2,2.8967]
[1719903120524,1.13753404,3452.8,3452.3,0.10157552]
[1719903120725,1.13753404,3452.7,3452.2,2.8967]
[1719903120925,2.89611,3452.9,3452.3,1.10124796]
[1719903121168,2.89611,3452.9,3452.3,0.10157552]
[1719903121321,1.13754046,3452.8,3452.3,0.10157552]
[1719903121658,1.13754046,3452.7,3452.2,2.8967]
[1719903121962,5.28588,3453.0,3452.3,2.8966]
[1719903122188,1.13753658,3452.9,3452.4,0.10149852]
[1719903122389,1.13753658,3452.8,3452.4,0.10149852]
[1719903122560,1.13753658,3452.7,3452.4,1.01865037]
[1719903122877,5.18985,3453.3,3452.6,3.0794]
[1719903123045,1.1375434,3453.2,3452.7,2.89626]
[1719903123224,6.00972,3453.5,3452.7,2.89626]
[1719903123426,1.13753394,3453.4,3452.8,0.10149852]
[1719903123634,1.13753394,3453.3,3452.8,0.10149852]
[1719903123822,1.13753394,3453.2,3452.8,2.99767852]
[1719903124027,2.89562,3453.5,3452.9,2.3528]
[1719903124477,1.13754231,3453.4,3453.0,0.10149852]
[1719903124658,2.89562,3453.5,3453.0,0.10149852]
[1719903124833,1.13754629,3453.4,3453.0,0.10149852]
[1719903125171,5.24796,3453.7,3453.0,0.10149852]
[1719903125351,1.1375495,3453.6,3453.0,0.10149852]
[1719903125534,1.1375495,3453.5,3453.0,0.10149852]
[1719903125738,5.24796,3453.7,3453.0,0.10149852]
[1719903125932,2.03407771,3453.6,3453.0,0.10149852]
[1719903126134,0.896527,3453.6,3453.0,0.10149852]
[1719903126334,3.792067,3453.6,3453.0,0.10149852]
[1719903126546,2.89561,3453.5,3453.0,0.10149852]
[1719903128694,0.896527,3453.6,3453.0,0.10149852]
[1719903129399,6.0688,3453.7,3453.0,0.10149852]
[1719903130094,6.0688,3453.7,3453.0,2.99752852]
[1719903130562,6.0688,3453.7,3453.0,5.89355852]
[1719903131255,3.1745,3453.7,3453.1,2.89591]
[1719903131657,3.1745,3453.7,3453.2,0.10127396]
[1719903132191,6.06994,3453.7,3453.2,0.10127396]
[1719903132969,2.3525,3453.7,3453.2,0.10127396]
[1719903133164,3.1745,3453.7,3453.2,0.10127396]
[1719903133852,2.3525,3453.7,3453.2,0.10127396]
[1719903134071,3.1745,3453.7,3453.2,0.10127396]
[1719903134993,2.89542,3453.8,3453.2,0.10127396]
[1719903135180,5.89517,3454.1,3453.3,5.8179814]
[1719903135386,3.0,3454.1,3453.5,2.8956]
[1719903135871,2.895,3454.3,3453.6,2.99653018]
[1719903136063,1.13772703,3454.2,3453.6,2.99653018]
[1719903136258,3.717,3454.3,3453.6,2.99653018]
[1719903136457,4.619757,3454.3,3453.6,2.99653018]
[1719903136678,7.514777,3454.3,3453.6,2.99653018]
[1719903136888,4.619757,3454.3,3453.6,2.99653018]
[1719903137091,3.0,3454.2,3453.6,2.99653018]
[1719903138409,3.0,3454.2,3453.7,2.4921]
[1719903138880,3.0,3454.2,3453.8,0.10103018]
[1719903139259,3.717,3454.3,3453.7,2.4921]
[1719903139494,3.717,3454.3,3453.9,0.10103018]
[1719903139702,0.822,3454.3,3453.8,2.89534]
[1719903140002,0.822,3454.5,3453.8,3.723634]
[1719903140201,5.89472,3454.6,3453.9,0.10103018]
[1719903140424,5.89472,3454.6,3453.9,2.99630018]
[1719903141265,5.89472,3454.6,3454.0,2.3805]
[1719903141266,6.71672,3454.6,3454.0,2.3805]
[1719903141802,6.71672,3454.6,3454.1,0.10103018]
[1719903142097,7.915974,3454.6,3454.1,0.10103018]
[1719903143071,2.89481,3454.5,3454.1,0.10103018]
[1719903143584,2.89481,3454.5,3454.2,0.10103018]
[1719903143782,2.89481,3454.5,3453.8,2.89535]
[1719903143988,0.822,3454.4,3453.9,0.10103018]
[1719903145262,5.30821,3454.5,3453.9,0.10103018]
[1719903145462,6.13021,3454.5,3453.9,0.10103018]
[1719903145684,5.30821,3454.5,3453.9,0.10103018]
[1719903145892,0.822,3454.4,3453.9,0.10103018]
[1719903146600,5.30821,3454.5,3453.9,0.10103018]
[1719903146925,6.13021,3454.5,3453.9,0.10103018]
[1719903147402,5.30821,3454.5,3453.9,0.10103018]
[1719903147608,6.13021,3454.5,3453.9,0.10103018]
[1719903150368,6.13021,3454.5,3453.9,2.99625018]
[1719903150801,3.2354,3454.5,3453.9,2.99625018]
[1719903151308,0.822,3454.5,3453.9,2.99625018]
[1719903151720,0.822,3454.5,3454.0,2.89518]
[1719903152027,0.822,3454.5,3454.1,0.10079292]
[1719903173166,1.13799024,3454.4,3454.1,0.10079292]
[1719903173425,0.822,3454.5,3454.1,0.10079292]
[1719903173579,1.13799635,3454.4,3454.1,0.10079292]
[1719903173781,0.822,3454.5,3454.1,0.10079292]
[1719903173984,1.13799953,3454.4,3454.1,0.10079292]
[1719903174187,0.822,3454.5,3454.1,0.10079292]
[1719903174509,1.13799991,3454.4,3454.1,0.10079292]
[1719903174697,0.822,3454.5,3454.1,0.10079292]
[1719903175008,1.13799855,3454.4,3454.1,0.10079292]
[1719903175177,3.91588485,3454.4,3454.1,0.10079292]
[1719903175395,3.71702,3454.2,3454.1,0.10079292]
[1719903175582,2.89542,3453.8,3452.9,5.34629]
[1719903175894,0.822,3453.3,3452.9,2.4502]
[1719903177289,0.822,3453.5,3452.9,2.4502]
[1719903179338,3.71761,3453.5,3452.9,2.4502]
[1719903179950,1.1380306,3453.4,3452.9,2.4502]
[1719903180245,3.71761,3453.5,3452.9,2.4502]
[1719903180444,0.822,3453.3,3452.6,2.423]
[1719903180818,3.71795,3453.1,3452.6,2.423]
[1719903181023,3.71795,3453.1,3452.0,2.89684]
[1719903181024,2.89612,3452.9,3452.3,2.423]
[1719903181237,3.71812,3452.9,3452.3,2.423]
[1719903181436,4.03431416,3452.8,3452.3,2.423]
[1719903181619,2.89623,3452.8,3452.3,2.423]
[1719903183306,2.89623,3452.8,3452.3,2.954984]
[1719903184267,2.89623,3452.8,3452.3,2.423]
[1719903184965,2.89623,3452.8,3452.4,0.09726938]
[1719903189372,2.89628,3452.7,3452.4,0.09726938]
[1719903203292,3.71845,3452.5,3452.4,0.09726938]
[1719903203495,2.89668,3452.3,3451.8,2.3932]
[1719903203731,2.89668,3452.3,3451.9,0.09431254]
[1719903203935,2.89668,3452.3,3451.9,0.42526379]
[1719903206038,2.89645,3452.5,3451.9,0.42526379]
[1719903206233,2.89645,3452.5,3452.0,2.3696]
[1719903206431,2.89638,3452.6,3452.0,2.3696]
[1719903206807,2.89638,3452.6,3452.1,0.09431254]
[1719903207448,2.89648,3452.5,3452.1,0.09431254]
[1719903217559,2.8967,3452.2,3452.1,0.09431254]
[1719903217760,2.8967,3452.2,3451.7,2.3915]
[1719903217920,2.8967,3452.2,3452.1,0.09442447]
[1719903218119,2.8967,3452.2,3451.7,2.3915]
[1719903218458,2.8967,3452.2,3451.8,0.09454279]
[1719903218657,2.8967,3452.2,3451.8,0.71506707]
[1719903218837,2.8967,3452.2,3451.8,0.62052428]
[1719903219017,2.8967,3452.2,3451.9,0.09454279]
[1719903224671,5.79313,3452.4,3451.9,0.09454279]
[1719903224875,2.89642,3452.6,3452.0,2.4994]
[1719903225042,1.13774271,3452.5,3452.0,2.4994]
[1719903225243,1.13773653,3452.4,3452.1,0.78794428]
[1719903225461,2.89642,3452.6,3452.1,0.78794428]
[1719903225770,1.13773407,3452.5,3452.1,0.78794428]
[1719903226081,1.13773407,3452.4,3452.1,0.78794428]
[1719903226374,2.89642,3452.6,3452.1,0.78794428]
[1719903226563,1.13773381,3452.5,3452.2,0.61842843]
[1719903226740,1.13773381,3452.4,3452.2,0.61842843]
[1719903226933,2.89642,3452.6,3452.3,0.09460357]
[1719903227137,1.13773338,3452.5,3452.0,2.4994]
[1719903227438,1.13773338,3452.4,3452.0,2.4994]
[1719903227673,2.89642,3452.6,3452.1,0.60168643]
[1719903227881,1.13773269,3452.5,3452.1,0.60168643]
[1719903228182,2.89647,3452.5,3452.1,0.60168643]
[1719903228377,1.13768546,3452.4,3452.1,0.60168643]
[1719903228536,2.89647,3452.5,3452.1,0.60168643]
[1719903228741,1.13773116,3452.4,3452.1,0.60168643]
[1719903228947,2.89647,3452.5,3452.1,0.60168643]
[1719903229138,1.13773205,3452.4,3452.1,0.60168643]
[1719903229334,2.89647,3452.5,3452.2,0.59343264]
[1719903229539,1.13789056,3452.4,3452.2,0.59343264]
[1719903229776,2.89647,3452.5,3452.2,0.59343264]
[1719903229978,2.89647,3452.5,3452.3,0.09460357]
[1719903230146,1.1379367,3452.4,3452.3,0.09460357]
[1719903230499,1.1379367,3452.4,3451.9,5.33264]
[1719903230646,2.89647,3452.5,3452.3,0.09460357]
[1719903230844,1.13793611,3452.4,3452.0,0.615464]
[1719903231058,2.89647,3452.5,3452.4,0.09460357]
[1719903231257,4.03440037,3452.5,3452.0,0.615464]
[1719903231468,2.89647,3452.5,3452.4,0.09460357]
[1719903231646,4.03432751,3452.5,3452.0,0.615464]
[1719903231846,2.89647,3452.5,3452.4,0.09460357]
[1719903232080,4.03428196,3452.5,3452.0,0.615464]
[1719903232378,1.13781086,3452.4,3452.0,0.615464]
[1719903232605,2.89647,3452.5,3452.1,0.09460357]
[1719903232893,1.13780738,3452.4,3452.1,0.09460357]
[1719903233042,2.89647,3452.5,3452.1,0.09460357]
[1719903233378,1.13780527,3452.4,3452.1,0.09460357]
[1719903233555,2.89647,3452.5,3452.1,0.09460357]
[1719903233737,1.13780518,3452.4,3452.1,0.09460357]
[1719903233937,2.89647,3452.5,3452.1,0.09460357]
[1719903234142,1.13780563,3452.4,3452.1,0.09460357]
[1719903234341,2.89647,3452.5,3452.1,0.09460357]
[1719903234582,1.13780111,3452.4,3452.1,0.09460357]
[1719903234882,2.89647,3452.5,3452.1,0.09460357]
[1719903235071,1.1376906,3452.4,3452.1,0.09460357]
[1719903235251,2.89647,3452.5,3452.1,0.09460357]
[1719903235455,1.13766907,3452.4,3452.1,0.09460357]
[1719903235640,2.89647,3452.5,3452.1,0.09460357]
[1719903235835,1.13766768,3452.4,3452.1,0.09460357]
[1719903236041,2.89647,3452.5,3452.1,0.09460357]
[1719903236241,1.13764414,3452.4,3452.1,0.09460357]
[1719903236485,2.89647,3452.5,3452.1,0.09460357]
[1719903236782,1.13763329,3452.4,3452.1,0.09460357]
[1719903236996,2.89647,3452.5,3452.1,0.09460357]
[1719903237152,1.13763495,3452.4,3452.1,0.09460357]
[1719903237353,2.89647,3452.5,3452.1,0.09460357]
[1719903237663,1.13764298,3452.4,3452.1,0.09460357]
[1719903237866,2.89647,3452.5,3452.1,0.09460357]
[1719903238086,1.13763241,3452.4,3452.1,0.09460357]
[1719903238278,6.02784,3452.7,3452.1,0.09460357]
[1719903238489,1.13762921,3452.6,3452.1,0.09460357]
[1719903238648,6.02784,3452.7,3452.1,0.09460357]
[1719903238649,1.13762921,3452.5,3452.1,0.09460357]
[1719903238854,1.13762921,3452.4,3452.0,2.89686]
[1719903239207,6.02784,3452.7,3452.0,2.89686]
[1719903239413,1.13761646,3452.6,3452.1,0.09459397]
[1719903239624,1.13761646,3452.5,3451.9,8.844984]
[1719903239827,1.13761646,3452.4,3452.2,0.09459397]
[1719903239978,6.02784,3452.7,3452.0,0.9666984]
[1719903240178,1.13761889,3452.6,3452.3,0.09459397]
[1719903240370,1.13761889,3452.5,3452.0,0.9666984]
[1719903240571,1.13761889,3452.4,3452.0,0.9666984]
[1719903240910,1.13761889,3452.4,3451.9,8.844984]
[1719903240911,6.02784,3452.7,3451.9,8.844984]
[1719903241078,1.13761537,3452.6,3451.9,8.844984]
[1719903241413,1.13761537,3452.5,3451.9,8.844984]
[1719903241626,1.13761537,3452.4,3452.0,2.89685]
[1719903241817,6.02784,3452.7,3452.0,2.89685]
[1719903241995,1.13751929,3452.6,3452.0,2.89685]
[1719903242306,1.13751374,3452.5,3452.0,3.8635394]
[1719903242506,1.13751374,3452.4,3452.0,3.8635394]
[1719903242699,6.02784,3452.7,3452.0,3.8635394]
[1719903242899,1.13750969,3452.6,3452.0,3.8635394]
[1719903243118,1.13750969,3452.5,3452.0,3.8635394]
[1719903243408,1.13750969,3452.4,3452.0,3.8635394]
[1719903243620,6.02784,3452.7,3452.0,3.8635394]
[1719903243822,1.13751339,3452.6,3452.0,3.8635394]
[1719903244115,1.13751339,3452.5,3452.0,3.8635394]
[1719903244423,1.13751339,3452.4,3452.0,3.8635394]
[1719903244632,6.02784,3452.7,3452.0,2.89685]
[1719903244806,4.03386647,3452.6,3452.0,2.89685]
[1719903245008,1.13744298,3452.5,3452.1,0.09455239]
[1719903245216,2.89636,3452.6,3451.9,2.4357]
[1719903245217,1.13744298,3452.4,3451.9,2.4357]
[1719903245407,2.89636,3452.6,3452.2,0.09455239]
[1719903245606,1.13720167,3452.5,3451.9,2.4357]
[1719903245817,1.13720167,3452.4,3452.3,0.09455239]
[1719903245998,1.13720167,3452.4,3451.9,2.4357]
[1719903246318,2.89645,3452.5,3451.9,2.4357]
[1719903246528,1.13714711,3452.4,3452.0,0.09455239]
[1719903247038,2.89662,3452.3,3452.0,0.09455239]
[1719903247235,1.13714711,3452.2,3451.7,2.3158]
[1719903247414,1.13714711,3452.2,3452.1,0.09454599]
[1719903247614,1.13714711,3452.2,3451.7,2.3158]
[1719903247815,1.13714711,3452.2,3452.1,0.09454919]
[1719903248027,1.13714711,3452.2,3451.7,2.3158]
[1719903248225,2.89662,3452.3,3452.1,0.09454919]
[1719903248436,1.1371846,3452.2,3451.7,2.3158]
[1719903248603,1.1371846,3452.1,3451.7,2.3158]
[1719903248803,2.89662,3452.3,3451.8,0.09454919]
[1719903249114,1.13719813,3452.2,3451.9,0.09454919]
[1719903249315,1.13719813,3452.1,3451.7,2.3158]
[1719903249510,2.89662,3452.3,3451.8,0.09454919]
[1719903249843,2.89662,3452.3,3451.7,2.3158]
[1719903249844,1.13720732,3452.2,3451.7,2.3158]
[1719903250134,1.13720732,3452.1,3451.7,2.3158]
[1719903250452,1.13720732,3452.1,3451.8,0.09454919]
[1719903250743,1.13720732,3452.1,3451.9,0.822]
[1719903250918,2.89662,3452.3,3452.0,0.09461635]
[1719903251103,1.13722654,3452.2,3452.0,0.09461635]
[1719903251304,1.13722654,3452.1,3452.0,0.09461635]
[1719903251503,2.89662,3452.3,3451.7,3.741295]
[1719903251853,2.89662,3452.3,3451.8,0.75846085]
[1719903252225,2.89662,3452.3,3451.8,0.09461635]
[1719903252427,2.89662,3452.3,3451.7,3.741295]
[1719903252746,2.8967,3452.2,3451.7,2.3158]
[1719903252929,2.8967,3452.2,3451.8,0.09459396]
[1719903253130,2.89689,3452.0,3451.3,2.258]
[1719903253435,2.89695,3451.9,3451.4,0.91658757]
[1719903259980,0.822,3452.2,3451.4,0.09458757]
[1719903260122,2.89701,3451.9,3451.4,0.09458757]
[1719903260323,2.89701,3451.9,3451.4,2.3008]
[1719903260539,2.89701,3451.9,3451.5,0.0881764]
[1719903260735,2.89704,3451.8,3451.5,0.0881764]
[1719903262348,2.89687,3452.0,3451.5,1.23127404]
[1719903265424,2.89662,3452.3,3451.5,1.23127404]
[1719903265630,9.7894,3452.7,3451.8,0.822]
[1719903265631,10.25635,3452.7,3451.8,0.822]
[1719903265977,2.89638,3452.6,3451.9,2.65629996]
[1719903266263,2.89638,3452.6,3452.0,0.822]
[1719903266474,2.89638,3452.6,3452.0,0.9101764]
[1719903270541,2.89645,3452.5,3452.0,0.0881764]
[1719903271465,2.89645,3452.5,3452.0,1.02423304]
[1719903273250,2.89645,3452.5,3452.0,0.0881764]
[1719903274428,2.89653,3452.4,3452.0,0.0881764]
[1719903280596,2.89637,3452.6,3452.0,0.0881764]
[1719903281007,5.79281,3452.6,3452.0,0.0881764]
[1719903281407,2.89645,3452.5,3452.0,0.0881764]
[1719903296931,2.89615,3452.9,3452.1,2.333]
[1719903297331,2.89633,3452.7,3452.2,0.0877761]
[1719903298101,2.89637,3452.6,3452.2,0.0877761]
[1719903302336,2.89645,3452.5,3452.2,0.0877761]
[1719903302962,2.89655,3452.4,3452.2,0.0877761]
[1719903303248,2.89655,3452.4,3451.8,2.3831]
[1719903303754,2.89655,3452.4,3451.9,0.0877761]
[1719903306860,2.89662,3452.3,3451.9,0.0877761]
[1719903311864,1.1376386,3452.2,3451.9,0.0877761]
[1719903312063,1.1376386,3452.1,3451.9,0.0877761]
[1719903312241,2.89662,3452.3,3451.9,0.0877761]
[1719903312445,1.13763871,3452.2,3451.9,0.0877761]
[1719903312639,1.13763871,3452.1,3451.9,0.0877761]
[1719903312845,2.89662,3452.3,3451.9,0.0877761]
[1719903313047,1.13763954,3452.2,3451.9,0.0877761]
[1719903313368,2.89662,3452.3,3451.9,0.0877761]
[1719903313369,1.13763954,3452.1,3451.9,0.0877761]
[1719903313662,2.89662,3452.3,3451.9,0.0597761]
[1719903313870,4.03435074,3452.2,3451.9,0.08684913]
[1719903314065,1.13764074,3452.1,3451.9,0.08684913]
[1719903315479,2.89684,3452.1,3451.9,0.08684913]
[1719903315669,3.268724,3452.1,3451.9,0.08684913]
[1719903315881,2.89698,3451.9,3451.5,2.4221]
[1719903318855,2.89671,3452.2,3451.6,2.3185]
[1719903319150,2.89665,3452.3,3451.7,0.52737115]
[1719903319352,2.8968,3452.1,3451.7,0.52737115]
[1719903320971,2.89665,3452.3,3451.7,0.52737115]
[1719903321174,2.89665,3452.3,3451.8,0.08697033]
[1719903321372,2.89665,3452.3,3451.7,0.52737115]
[1719903321579,2.89676,3452.2,3451.8,0.08697033]
[1719903321786,2.89676,3452.2,3451.7,0.52737115]
[1719903321787,2.89676,3452.2,3451.6,2.3185]
[1719903321957,2.89676,3452.2,3451.7,0.08697033]
[1719903322786,2.89659,3452.4,3451.7,0.08697033]
[1719903322952,2.89659,3452.4,3451.8,2.3062]
[1719903323481,2.89662,3452.3,3451.9,0.087015]
[1719903324771,2.89649,3452.5,3451.9,0.087015]
[1719903325398,2.8963,3452.7,3452.0,2.3122]
[1719903325711,2.8963,3452.7,3452.1,0.08696077]
[1719903326895,2.8962,3452.8,3452.1,0.08696077]
[1719903329655,2.8962,3452.8,3452.1,0.41625416]
[1719903331863,2.4748,3452.9,3452.1,4.13502416]
[1719903332171,2.89603,3453.0,3452.2,2.2806]
[1719903332366,2.89612,3452.9,3452.2,2.2806]
[1719903332514,2.89612,3452.9,3452.2,3.28190638]
[1719903332723,2.89612,3452.9,3452.3,0.08696077]
[1719903335775,2.4694,3453.1,3452.3,3.80557077]
[1719903335935,3.0,3453.1,3452.4,2.3616]
[1719903336343,3.0,3453.1,3452.5,0.08684277]
[1719903337441,5.89595,3453.1,3452.5,0.08684277]
[1719903340408,2.89604,3453.0,3452.5,0.08684277]
[1719903341262,4.914553,3453.0,3452.5,0.08684277]
[1719903342097,7.810663,3453.0,3452.5,0.08684277]
[1719903342398,4.914553,3453.0,3452.5,0.08684277]
[1719903345357,2.89613,3452.9,3452.5,0.08684277]
[1719903348180,2.8962,3452.8,3452.5,0.08684277]
[1719903349984,3.7182,3452.8,3452.5,0.08684277]
[1719903350201,2.89636,3452.6,3452.5,0.08684277]
[1719903350499,2.89636,3452.6,3451.9,2.4668]
[1719903350500,2.89654,3452.4,3451.9,2.4668]
[1719903359021,2.89663,3452.3,3451.9,2.4668]
[1719903359194,2.89663,3452.3,3451.7,2.4006]
[1719903360424,2.8967,3452.2,3451.5,5.30307]
[1719903360592,3.7187,3452.2,3451.5,5.30307]
[1719903360790,0.822,3452.0,3451.5,5.30307]
[1719903361127,3.7187,3452.2,3451.5,5.30307]
[1719903361303,7.522454,3452.2,3451.5,5.30307]
[1719903361621,7.522454,3452.2,3451.3,0.822]
[1719903361622,2.8968,3452.1,3451.4,2.89736]
[1719903362023,5.18446,3451.9,3451.3,2.3341]
[1719903364627,5.18446,3451.9,3451.3,5.23154]
[1719903364931,5.18446,3451.9,3451.4,0.08703094]
[1719903369824,2.89705,3451.8,3451.4,0.08703094]
[1719903370202,2.89705,3451.8,3451.1,6.01299]
[1719903370407,2.89705,3451.8,3451.5,0.08703094]
[1719903370408,2.86905,3451.8,3451.5,0.08703094]
[1719903370727,2.86905,3451.8,3451.6,0.08703094]
[1719903370904,2.86905,3451.8,3451.2,0.891065]
[1719903371106,2.86905,3451.8,3451.7,0.08703094]
[1719903371304,2.86905,3451.8,3451.2,0.891065]
[1719903371618,2.86905,3451.8,3451.7,0.08703094]
[1719903371815,2.86905,3451.8,3451.1,6.01299]
[1719903371995,2.86905,3451.8,3451.7,0.08703094]
[1719903372324,2.86905,3451.8,3451.7,0.08719681]
[1719903372529,2.86905,3451.8,3451.2,2.89753]
[1719903372727,2.86905,3451.8,3451.7,0.08719681]
[1719903372913,2.86905,3451.8,3451.2,2.89753]
[1719903373125,2.86905,3451.8,3451.7,0.08719681]
[1719903373315,2.86905,3451.8,3451.1,3.1154]
[1719903373316,2.89714,3451.7,3451.1,3.1154]
[1719903374528,2.89714,3451.7,3451.1,6.01302]
[1719903374698,2.89714,3451.7,3451.2,0.891065]
[1719903379236,2.2875,3451.9,3451.2,0.891065]
[1719903379412,2.89725,3451.6,3451.1,2.3606]
[1719903380028,2.89725,3451.6,3451.2,0.0872]
[1719903380229,2.89725,3451.6,3451.2,0.9092]
[1719903383712,2.89704,3451.8,3451.2,3.80669]
[1719903383908,2.89704,3451.8,3451.3,0.616729]
[1719903384369,2.89704,3451.8,3451.4,0.0872]
[1719903388467,5.33704,3451.8,3451.4,0.0872]
[1719903388968,5.33704,3451.8,3451.5,0.0871968]
[1719903389269,2.89745,3451.4,3451.0,0.822]
[1719903389478,2.89745,3451.4,3450.7,5.22491]
[1719903389632,2.89745,3451.4,3451.1,0.0871968]
[1719903389837,2.89745,3451.4,3450.8,3.822]
[1719903390031,2.89745,3451.4,3451.2,0.0871968]
[1719903390232,2.89745,3451.4,3450.9,0.904691]
[1719903390573,2.89746,3451.3,3450.9,0.904691]
[1719903391030,2.89746,3451.3,3451.0,0.0871968]
[1719903393431,2.89746,3451.3,3450.8,3.822]
[1719903393632,2.89746,3451.3,3451.1,0.08728933]
[1719903393865,2.89746,3451.3,3450.8,5.04525638]
[1719903394066,2.89746,3451.3,3451.2,0.08728933]
[1719903394379,2.89746,3451.3,3450.7,2.327]
[1719903394578,2.89746,3451.3,3451.2,0.08728933]
[1719903394781,2.89746,3451.3,3450.7,2.327]
[1719903394935,2.89746,3451.3,3451.2,0.08728933]
[1719903395135,2.89746,3451.3,3450.7,2.327]
[1719903395334,2.89746,3451.3,3451.2,0.08728933]
[1719903395557,2.89746,3451.3,3450.6,3.270026]
[1719903395763,2.89746,3451.3,3451.2,0.08728933]
[1719903395978,2.89746,3451.3,3450.6,3.270026]
[1719903396188,2.89746,3451.3,3451.2,0.08728933]
[1719903396391,2.89746,3451.3,3450.6,3.270026]
[1719903396590,2.89746,3451.3,3451.2,0.08744249]
[1719903396874,2.89746,3451.3,3450.7,0.9378686]
[1719903397075,2.89746,3451.3,3451.2,0.08744249]
[1719903397239,2.89746,3451.3,3450.7,0.9378686]
[1719903397437,2.89746,3451.3,3451.2,0.08744249]
[1719903397637,2.89746,3451.3,3450.7,0.9378686]
[1719903397978,2.89746,3451.3,3450.8,1.03165546]
[1719903398277,2.89746,3451.3,3450.8,1.11909795]
[1719903399602,2.89746,3451.3,3450.8,0.91909795]
[1719903399896,2.89746,3451.3,3450.8,0.08744249]
[1719903400186,2.89746,3451.3,3450.6,3.270026]
[1719903400388,2.89746,3451.3,3450.9,0.08748397]
[1719903400591,2.89771,3451.0,3450.2,5.27867]
[1719903400887,0.822,3450.9,3450.2,5.27867]
[1719903401088,2.89771,3451.0,3450.2,5.27867]
[1719903401285,2.89771,3451.0,3450.3,1.209921]
[1719903401662,2.89786,3450.9,3450.3,1.209921]
[1719903403763,5.15386,3450.9,3450.3,1.209921]
[1719903404573,2.89786,3450.9,3450.3,1.209921]
[1719903404887,5.21328,3450.8,3450.2,2.89837]
[1719903407089,5.21328,3450.8,3450.0,2.99853]
[1719903407090,3.71996,3450.7,3450.0,2.99853]
[1719903407289,4.613284,3450.7,3450.0,2.99853]
[1719903407591,3.791284,3450.7,3450.0,2.99853]
[1719903407756,2.89796,3450.7,3450.0,2.99853]
[1719903409971,2.89796,3450.7,3450.1,0.08186207]
[1719903410383,2.89804,3450.6,3450.1,0.08186207]
[1719903411294,2.89814,3450.5,3450.1,0.08186207]
[1719903415593,2.89802,3450.7,3450.1,0.90386207]
[1719903415781,2.89802,3450.7,3450.2,0.69024021]
[1719903415987,2.89802,3450.7,3450.2,3.0420474]
[1719903418138,5.21328,3450.8,3450.2,0.83031087]
[1719903418335,2.89788,3450.8,3450.3,2.92078509]
[1719903418839,2.89788,3450.8,3450.4,0.08210719]
[1719903420414,2.89788,3450.8,3450.3,2.31514543]
[1719903420614,2.89788,3450.8,3450.5,0.07937028]
[1719903420829,2.89788,3450.8,3450.3,2.31514543]
[1719903421136,2.89788,3450.8,3450.3,3.28758199]
[1719903421431,2.89788,3450.8,3450.4,0.07937028]
[1719903425428,5.32749,3451.2,3450.4,5.35396028]
[1719903425636,5.32749,3451.2,3450.5,0.70166371]
[1719903426153,5.32749,3451.2,3450.6,0.07930661]
[1719903430762,3.71964,3451.1,3450.6,0.07930661]
[1719903430949,3.71964,3451.1,3450.4,2.89813]
[1719903431656,3.71964,3451.1,3450.5,0.07930661]
[1719903432251,2.89775,3451.0,3450.5,0.07930661]
[1719903432738,2.89775,3451.0,3450.2,9.72762021]
[1719903432739,2.89775,3451.0,3450.6,0.07930661]
[1719903433059,2.89775,3451.0,3450.2,6.82928021]
[1719903433261,2.89775,3451.0,3450.7,0.07930661]
[1719903433436,2.89775,3451.0,3450.2,6.13904]
[1719903433776,2.89775,3451.0,3450.2,7.352795]
[1719903433971,2.89775,3451.0,3450.3,0.07930661]
[1719903434767,2.89783,3450.9,3450.3,0.07930661]
[1719903436375,2.89794,3450.8,3450.3,0.07930661]
[1719903436576,2.89794,3450.8,3450.2,4.454455]
[1719903436746,2.89794,3450.8,3450.4,0.07929068]